Cogmind - Beta 16.1 @@@ ROGUE MODE // 2026.04.26 @ 08:11:51 Player: kareds Result: Destroyed by as-88252 with Assembled F-torch Performance ------------- Evolutions (0) 0 Regions Visited (2) 400 Robots Destroyed (14) 70 Value Destroyed (323) 323 Prototype IDs (2) 40 Alien Tech Used (0) 0 Bonus (0) 0 TOTAL SCORE: 833 Bonus ------- None Cogmind --------- Core Integrity 0/250 Matter 300/300 Energy 125/125 System Corruption 0% Temperature Cool (20) Movement Walking (120) Location -10/Mines Parts ------- > --- POWER (1) -------- Light Ion Engine > --- PROPULSION (2) --- Aluminum Leg Aluminum Leg > --- UTILITY (2) ------ Improved Heat Sink Structural Scanner > --- WEAPON (2) ------- Particle Gun Light Assault Rifle > --- INVENTORY (5) ---- Small Storage Unit Medium Battery (150) Tractor Beam Peak State ------------ > --- POWER ------------ Light Ion Engine > --- PROPULSION ------- Aluminum Leg Aluminum Leg > --- UTILITY ---------- Improved Heat Sink Structural Scanner > --- WEAPON ----------- EM Pulse Gun Particle Gun > --- INVENTORY -------- Small Storage Unit Medium Battery Tractor Beam [Rating: 10] Favorites ----------- Power Light Ion Engine Engine Light Ion Engine Propulsion Aluminum Leg Leg Aluminum Leg Utility Structural Scanner Device Structural Scanner Storage Small Storage Unit Weapon Particle Gun Energy Gun Particle Gun Ballistic Gun Light Assault Rifle Build | -11 -10 -10 ------- Run | Yrd Mat Min Slots Evolved . | . . . Power . | . . . Propulsion . | . . . Utility . | . . . Weapon . | . . . Parts Attached 19 | 7 3 9 Power 3 | 1 . 2 Engine 3 | 1 . 2 Core . | . . . Reactor . | . . . Propulsion 5 | 2 . 3 Treads . | . . . Leg 5 | 2 . 3 Wheel . | . . . Hover . | . . . Flight . | . . . Utility 6 | 2 2 2 Device 5 | 1 2 2 Storage 1 | 1 . . Processor . | . . . Hackware . | . . . Protection . | . . . Artifact . | . . . Weapon 5 | 2 1 2 Energy Gun 3 | 1 1 1 Energy Cannon . | . . . Ballistic Gun 2 | 1 . 1 Ballistic Cannon . | . . . Launcher . | . . . Special Weapon . | . . . Impact Weapon . | . . . Slashing Weapon . | . . . Piercing Weapon . | . . . Special Melee Weapon . | . . . Unidentified Prototypes . | . . . Parts Lost 6 | . 1 5 Power 2 | . . 2 Propulsion 2 | . . 2 Utility 1 | . 1 . Weapon 1 | . . 1 Highest Loss Streak 4 | . 1 4 To Critical Strikes . | . . . Average Backups 2 | . . 3 Power . | . . . Propulsion . | . . . Utility 1 | . . 2 Weapon . | . . . Tool/Special . | . . . Unused Backups 1 | . . 1 Power . | . . . Propulsion . | . . . Utility 1 | . . 1 Weapon . | . . . Tool/Special . | . . . Average Slot Usage (%) 89 | . 95 86 Engine 9 | . 13 7 Leg 23 | . 28 21 Device 21 | . 11 26 Storage 5 | . 14 1 Energy Gun 16 | . 17 16 Ballistic Gun 11 | . 10 11 Peak Build Rating 10 | 7 8 10 Average Rating 7 | 4 7 8 On Entrance 5 | . 7 8 Avg Prop Armor Cover (%) 11 | . . 11 Naked Turns . | . . . Heaviest Build 14 | 13 14 14 Greatest Support 20 | 20 20 20 Greatest Overweight (x) 3 | 3 . 3 Average Overweight (x) . | . . . Largest Inventory Capacity 8 | 8 8 8 Average Capacity 6 | 7 8 5 Most Carried 5 | . 2 5 Average Carried 2 | . . 3 Final Capacity 8 | 8 8 5 Final Carried 3 | . 2 3 Class Distribution -------------------- 51% | Scavenger-Mutant 48% | Mutant Dominant Class ---------------- Mutant | -10/Materials Scavenger-Mutant | -10/Mines Resources | -11 -10 -10 ----------- Run | Yrd Mat Min Matter Collected 496 | 215 168 113 Remotely 20 | . 20 . Salvage Created 606 | 10 327 269 Parts 29 | 4 14 11 Haulers Intercepted 1 | . 1 . Recyclers Shooed . | . . . Parts Field Recycled . | . . . Retrieved Matter . | . . . Parts Self-Destructed . | . . . Prevented . | . . . Parts Restored . | . . . Kills | -11 -10 -10 ------- Run | Yrd Mat Min Combat Hostiles Destroyed 13 | . 3 10 Guns 13 | . 3 10 Classes Destroyed 7 | 1 4 2 Worker 1 | . 1 . Tunneler 1 | 1 . . Hauler 1 | . 1 . Recycler 1 | . 1 . Swarmer 3 | . . 3 Grunt 7 | . 3 4 Assembled 3 | . . 3 Best Kill Streak 3 | 1 3 3 Combat Bots Only 3 | . 1 3 Max Kills in Single Turn 1 | 1 1 1 Gunslinging . | . . . Exploded . | . . . Melee . | . . . Uniques/NPCs Destroyed . | . . . Combat | -11 -10 -10 -------- Run | Yrd Mat Min Hostile Shots Fired 108 | . 21 87 Missed 30 | . 7 23 Hits 78 | . 14 64 Projectile 78 | . 14 64 Critical Strikes 2 | . . 2 Damage Taken 874 | . 171 703 Core 257 | . 67 190 Absorbed by Shields . | . . . Core Remaining (%) 100 | 100 . . Volleys Fired 72 | 2 24 46 Largest 2 | 2 2 2 Hottest 105 | 60 60 105 Shots Fired 141 | 4 48 89 Gun 141 | 4 48 89 Cannon . | . . . Launcher . | . . . Special . | . . . Kinetic 54 | 2 24 28 Thermal 46 | . . 46 Explosive . | . . . Electromagnetic 41 | 2 24 15 Robot Hit Streak 12 | 1 6 12 Robot Miss Streak 4 | 1 3 4 Penetration Max . | . . . Secondary Targets 1 | . . 1 Max Gunslinging Chain 1 | . . 1 Shots Hit Robots 85 | 2 27 56 Core Hits 30 | 1 11 18 Critical Kills . | . . . Critical Parts Destroyed . | . . . Critical Strikes 2 | . . 2 Burn 1 | . . 1 Corrupt 1 | . . 1 Melee Attacks . | . . . Impact . | . . . Slashing . | . . . Piercing . | . . . Sneak Attacks . | . . . Combat Hostiles . | . . . Follow-up Attacks . | . . . Damage Inflicted 1196 | 35 438 723 Guns 1142 | 35 384 723 Cannons . | . . . Explosions 54 | . 54 . Melee . | . . . Ramming . | . . . Kinetic 375 | 20 197 158 Thermal 488 | . 54 434 Explosive . | . . . Electromagnetic 333 | 15 187 131 Impact . | . . . Slashing . | . . . Piercing . | . . . Highest Corruption . | . . . Average Corruption . | . . . Corruption Purged . | . . . Corruption Blocked . | . . . Overload Shots . | . . . Overflow Damage 2 | . 2 . Projectiles . | . . . Explosions 2 | . 2 . Melee . | . . . Knockbacks . | . . . Impact . | . . . Kinetic . | . . . Secondary . | . . . Self-Inflicted Damage . | . . . Shots . | . . . Rammed . | . . . Targets Rammed . | . . . Kicked . | . . . Crushed . | . . . Highest Temperature 414 | . 63 414 Average Temperature 67 | . 32 81 Received Heat Transfer 341 | . 93 248 Effects 1 | . . 1 Shutdowns 1 | . . 1 Siege Activations . | . . . Martial Activations . | . . . Shielding Activations . | . . . Robots Disrupted . | . . . Combat Hostiles . | . . . Robots Corrupted . | . . . Combat Hostiles . | . . . Parts Fried . | . . . Impact Corruptions . | . . . Robots Melted . | . . . Combat Hostiles . | . . . Parts Melted 2 | . . 2 Heat Transferred 1160 | . 50 1110 Parts Sabotaged . | . . . Parts Stolen . | . . . Parts Stripped . | . . . Power Chain Reactions 1 | . 1 . Alert | -11 -10 -10 ------- Run | Yrd Mat Min Maximum Alert Level . | . . . Low Security (%) 100 | 100 100 100 Level 1 . | . . . Level 2 . | . . . Level 3 . | . . . Level 4 . | . . . Level 5 . | . . . High Security . | . . . Max Security . | . . . Peak Influence 70 | 5 42 70 Initial . | . . . Average 15 | . 11 20 Influence Increases 336 | 5 101 230 Destroy 0b10 Robot/C 200 | . 60 140 Destroy 0b10 Robot/NC 20 | 5 15 . Destroy Leader 42 | . 12 30 Successful Hack 11 | . 11 . Destroy Structure 3 | . 3 . Lose Combat Pursuer 60 | . . 60 Influence Decreases 336 | 5 101 230 Time Decay 278 | 5 93 180 Lost Part 58 | . 8 50 Squads Dispatched . | . . . Investigation . | . . . Extermination . | . . . Reinforcement . | . . . Assault . | . . . Garrison . | . . . Intercept . | . . . Searches Triggered . | . . . Construction Impeded . | . . . Haulers Reinforced . | . . . Active Scanning Responses . | . . . Cargo Convoy Interrupts . | . . . Stealth | -11 -10 -10 --------- Run | Yrd Mat Min Distress Signals 1 | . 1 . Communications Jammed . | . . . Distress Signals . | . . . Times Spotted 23 | . 6 17 Peak Tracking Total 5 | . 5 3 Tactical Retreats 4 | . . 4 Traps | -11 -10 -10 ------- Run | Yrd Mat Min Traps Triggered 1 | . 1 . Indirectly . | . . . Trap Hack Attempts . | . . . Triggered . | . . . Disarmed . | . . . Reprogrammed . | . . . Reused . | . . . Traps Extracted . | . . . Installed . | . . . Triggered . | . . . Machines | -11 -10 -10 ---------- Run | Yrd Mat Min Machines Disabled . | . . . Max in Single Turn . | . . . Machines Repaired . | . . . Machines Dismantled . | . . . Machines Sabotaged . | . . . Overloaded Fab Kills . | . . . Hacking | -11 -10 -10 --------- Run | Yrd Mat Min Machines Accessed 3 | . 2 1 Terminals 2 | . 2 . Fabricators . | . . . Repair Stations . | . . . Recycling Units . | . . . Scanalyzers . | . . . Garrison Access . | . . . Total Hacks 4 | . 3 1 Successful 4 | . 3 1 Failed . | . . . Catastrophic . | . . . Database Lockouts . | . . . Manual . | . . . Terminals 3 | . 3 . Fabricators . | . . . Repair Stations . | . . . Recycling Units . | . . . Scanalyzers . | . . . Garrison Access . | . . . Terminal Hacks 4 | . 3 1 Prototype ID Bank 1 | . 1 . Open Door 1 | . . 1 Branch Access Points 1 | . 1 . Locate Traps 1 | . 1 . Fabricator Hacks . | . . . Repair Station Hacks . | . . . Recycling Unit Hacks . | . . . Scanalyzer . | . . . Garrison Access Hacks . | . . . Unauthorized Hacks . | . . . Terminals . | . . . Fabricators . | . . . Repair Stations . | . . . Recycling Units . | . . . Scanalyzers . | . . . Garrison Access . | . . . Data Cores Recovered . | . . . Used . | . . . Hacking Detections 1 | . 1 . Full Trace Events . | . . . Feedback Events . | . . . Feedback Blocked . | . . . Robot Schematics Acquired . | . . . Robots Built . | . . . Authchips . | . . . Time . | . . . Total Robot Build Rating . | . . . Part Schematics Acquired . | . . . Parts Built . | . . . Authchips . | . . . Time . | . . . Total Part Build Rating . | . . . Part Studies Acquired . | . . . Parts Repaired . | . . . Time . | . . . Parts Recycled . | . . . Recycled Matter . | . . . Retrieved Matter . | . . . Retrieved Components . | . . . Parts Scanalyzed . | . . . Part Schematics Acquired . | . . . Parts Damaged . | . . . Bothacking | -11 -10 -10 ------------ Run | Yrd Mat Min Used RIF Installer . | . . . Robots Hacked . | . . . Non-combat . | . . . Combat . | . . . Robot Hacks Applied . | . . . Relay Couplers Released . | . . . Fabnet Peak Effective % . | . . . Robots Rewired . | . . . Allies Hacked . | . . . Hacks Repelled . | . . . Allies | -11 -10 -10 -------- Run | Yrd Mat Min Total Allies . | . . . Largest Group . | . . . Highest-Rated Group . | . . . Highest-Rated Ally . | . . . Total Orders . | . . . Ally Attacks . | . . . Total Damage . | . . . Kills . | . . . Allies Corrupted . | . . . Allies Melted . | . . . Intel | -11 -10 -10 ------- Run | Yrd Mat Min Active Infowar (turns) 815 | 15 212 588 Structural 653 | . 65 588 Seismic 162 | 15 147 . Robot Analysis Total . | . . . Derelict Logs Recovered 1 | . . 1 Drone Launches . | . . . Drone Recoveries . | . . . Exploration | -11 -10 -10 ------------- Run | Yrd Mat Min Turns Passed 953 | 78 287 588 Spaces Moved 433 | 45 168 220 Core 71 | 16 . 55 Treads . | . . . Legs 362 | 29 168 165 Wheels . | . . . Hover . | . . . Flight . | . . . Fastest Speed 50 | 50 120 100 Average Speed 130 | 137 120 136 Slowest Speed 200 | 200 120 200 Overloaded Moves . | . . . Propulsion Burnouts . | . . . Robots Hopped . | . . . Potential Cave-ins . | . . . Cave-ins Triggered . | . . . Exploration Rate (%) 25 | 4 38 35 Regions Visited 2 Branch Regions 1 Pre-discovered Areas 1 | . . 1 Known Exits Taken 1 | . 1 . Unknown Exits Taken 1 | 1 . . Scrap Searched . | . . . Spaces Dug . | . . . Terrain Destroyed 3 | . 3 . Melee . | . . . Projectile . | . . . AOE 3 | . 3 . Terrain Rammed . | . . . Walls Destroyed . | . . . Machines Disabled . | . . . Actions | -11 -10 -10 --------- Run | Yrd Mat Min Total 677 | 53 203 421 Wait 146 | . 5 141 Move 431 | 44 167 220 Hop . | . . . Pick Up 2 | . 1 1 Fast Attach 17 | 7 4 6 Attach . | . . . Detach 2 | . 1 1 Swap 4 | . 1 3 Drop 3 | . . 3 Fire 72 | 2 24 46 Melee . | . . . Ram . | . . . Kick . | . . . Crush . | . . . Escape Stasis . | . . . Rewire . | . . . Trap . | . . . Miscellaneous . | . . . Route ------- -11/Scrapyard -10/Materials (discovered 2 exits: [*Mat] / *Min) -10/Mines (discovered 2 exits: [*Mat x2]) History --------- Turn | Location | Event 34 | -11/Scrapyard | Discovered new exit (range 16) 79 | -11/Scrapyard | Entered Materials 89 | -10/Materials | Identified exit to Mines 312 | -10/Materials | Discovered new exit (range 16) 322 | -10/Materials | Build established: Mutant 366 | -10/Materials | Entered Mines 442 | -10/Mines | Learned location of Storage (-7) 455 | -10/Mines | Core integrity fell below 50% 506 | -10/Mines | Discovered new exit (range 11) 513 | -10/Mines | Lost 4 parts (1p2n1w) 609 | -10/Mines | Core integrity fell below 20% 674 | -10/Mines | Discovered new exit (range 9) 682 | -10/Mines | Found the Drone Emporium 720 | -10/Mines | Assembled infested the area 725 | -10/Mines | Assisted by a Guerilla fighting off Assembled 761 | -10/Mines | Build established: Scavenger-Mutant 954 | -10/Mines | Destroyed by as-88252 with Assembled F-torch Last Messages --------------- 00839_ K-01 Serf destroyed. 00841_ as-33397 destroyed. 00849_ Acquired Lgt. Ion Engine. 00850_ Dropped Particle Gun. 00852_ Dropped Aluminum Leg. 00853_ Acquired 19 matter. 00859_ U-05 Engineer lays Concrete. 00863_ U-05 Engineer builds a Wall. 00863_ Destroyed Asb. Hover Unit. 00866_ as-29945 destroyed. 00867_ U-05 Engineer lays Concrete. 00869_ U-05 Engineer builds a Wall. 00871_ Acquired 8 matter. 00882_ U-05 Engineer builds a Wall. 00914_ U-05 Engineer destroyed. 00930_ as-98666 destroyed. 00933_ Acquired 5 matter. 00936_ The unstable cave ceiling collapses. 00937_ Acquired 10 matter. 00939_ Dropped Structural Scanner. Map ----- +----------------------------------------------------+ | ????????????????###""""###?????????? | | ????????????????##" ! "##?????????? | | ????????????????##" "#####??????? | | ????????????????### ######??????? | | ???????############# ## ##??????? | | ###????########### X ##??????? | | ####???## ##??????? | | ###???## ##??????? | | ##???## ####### ##??????? | | ##???## ####### ##??????? | | ##???## ##???## ##??????? | | ##???## ##???## ##??????? | | ##??### ####### ##??????? | | ##?#### ####### ##??????? | | ###### ##??????? | | ##### ## ### < ##??????? | | ### ### ### = ##??????? | | ####??## % ##??????? | | ####???## *= ##??????? | | ####????########=##########? | | # #####????###### #% ######## | | ## ####???? ###### #%###### ### | | ## ##?????? ## ####*##### ## | | ## ##?????? # * =### ## | | ## ##??????## % ##%* ### | | ## ##??????## ## @!%=####### | | ##??????### ####a =[#######? | | ##??????### ## ### ###????? | | #### ?????#### ### ## ##?????? | | #### ????##### #######a ##?????? | | ###????????## ##?????? | | ###???? #### ##### ###?????? | | ##???????????? #### ##########?????? | | ???????????????????????######??????? | | ???????????????????????????????????? | | ???????????????????????????????????? | | ???????????????????????????????????? | | ???????????????????????????????????? | | ???????????????????????????????????? | | ???????????????????????????????????? | | ???????????????????????????????????? | | ???????????????????????????????????? | | ???????????????????????????????????? | | ???????????????????????????????????? | | ???????????????????????????????????? | | ???????????????????????????????????? | | ???????????????????????????????????? | | ???????????????????????????????????? | | ???????????????????????????????????? | | ???????????????????????????????????? | +----------------------------------------------------+ Best States ------------- Heat Dissipation 39 Energy Generation 10 Energy Capacity 250 Matter Stores 300 Matter Capacity 300 Sight Range 16 Terrain Scan Density 10 Evasion (%) 55 Item Schematics ----------------- None Robot Schematics ------------------ None Fabricated ------------ Nothing Repaired ---------- Nothing Studied --------- None Alien Tech Used ----------------- None Achievements -------------- None Challenges ------------ None Game ------ Seed TargetBurstRailgun Manual? 0 Play Time 00:09:43 Cumulative 16.7 hours Start 2026.04.26 @ 08:03:04 End 2026.04.26 @ 08:11:51 Sessions 1 Manual Loads 0 Difficulty Rogue Special Mode None Game No. 22 Rogue 6 Adventurer 16 Explorer 0 Win Type - Total 0 Types 0/0/0/0/0/0/0/0/0/0 Lore% 28 Gallery% 24 Achievement% 22 Wizard Run 0 Options --------- Layout 1 ASCII 0 Keyboard 0 Movement Mouse Keybinds 0 Fullscreen 1 Font 24/Smallcaps Map View 50x35 Zoom Use 0% Tactical HUD 1 Map Filters NONE Filters NONE Steam 1 RUN: 8baca93a-154c-42fd-b5ed-4d9d22902be0